Workbook

Sheet Superpesis
B1: Titta Liuski | E1: 19.1.1990 Kajaani
B2: SUPERPESIS | E2: Runkosarja | I2: Kärkilyönnit (KL), pesänvälit | P2: Ylempi loppusarja | U2: Alempi loppusarja | Z2: Arvo-ottelut ja mitalit | AF2: Runkosarjan jälkeen
B3: Vuosi | C3: Sija | D3: Seura | E3: OTT | F3: KUN | G3: LÖI | H3: TOI | I3: KL | J3: 0 > 1 | K3: 1 > 2 | L3: 2 > 3 | M3: 3 > k | N3: KL-% | P3: OTT | Q3: KUN | R3: LÖI | S3: TOI | T3: KL | U3: OTT | V3: KUN | W3: LÖI | X3: TOI | Y3: KL | Z3: IL | AA3: LL | AB3: Halli | AC3: K | AD3: H | AE3: P
B4: 2006 | D4: KPK | F4: suomensarja
B5: 2007 | D5: KPK | F5: ykköspesis
B6: 2008 | D6: KPK | F6: ykköspesis
B7: 2009 | C7: 10. | D7: SiiPe | E7: 23 | F7: 0 | G7: 7 | H7: 15 | I7: 69 | J7: 21 | K7: 14 | L7: 27 | M7: 7 | N7: 43.7 % | O7: =PRODUCT(I7/N7) -> 158.0032059 | U7: 5 | V7: 0 | W7: 1 | X7: 2 | Y7: 13 | AF7: alemmat pudotuspelit
B8: 2010 | C8: 8. | D8: SiiPe | E8: 24 | F8: 2 | G8: 4 | H8: 15 | I8: 70 | J8: 34 | K8: 22 | L8: 8 | M8: 6 | N8: 47.0 % | O8: =PRODUCT(I8/N8) -> 149.0312966 | P8: 3 | Q8: 0 | R8: 1 | S8: 2 | T8: 8 | AF8: play off
B9: 2011 | C9: 8. | D9: YPJ | E9: 22 | F9: 1 | G9: 6 | H9: 13 | I9: 63 | J9: 12 | K9: 28 | L9: 16 | M9: 7 | N9: 43.4 % | O9: =PRODUCT(I9/N9) -> 145.1612903 | P9: 3 | Q9: 0 | R9: 0 | S9: 0 | T9: 8 | AF9: play off
B10: 2012 | C10: 8. | D10: YPJ | E10: 18 | F10: 1 | G10: 5 | H10: 18 | I10: 57 | J10: 17 | K10: 27 | L10: 7 | M10: 6 | N10: 49.1 % | O10: =PRODUCT(I10/N10) -> 116.089613 | P10: 3 | Q10: 0 | R10: 0 | S10: 0 | T10: 8 | AF10: play off
B11: 2013 | C11: 4. | D11: Pesä Ysit | E11: 24 | F11: 3 | G11: 6 | H11: 31 | I11: 96 | J11: 66 | K11: 14 | L11: 7 | M11: 9 | N11: 55.5 % | O11: =PRODUCT(I11/N11) -> 172.972973 | P11: 1 | Q11: 0 | R11: 0 | S11: 0 | T11: 4 | AF11: play off
B12: Yhteensä | E12: =SUM(E4:E11) -> 111 | F12: 7 | G12: 28 | H12: 92 | I12: 355 | J12: 150 | K12: 105 | L12: 65 | M12: 35 | N12: =PRODUCT(I12/O12) -> 47.9 % | O12: =SUM(O7:O11) -> 741.2583788 | P12: =SUM(P4:P11) -> 10 | Q12: 0 | R12: 1 | S12: 2 | T12: 28 | U12: 5 | V12: 0 | W12: 1 | X12: 2 | Y12: 13 | Z12: 0 | AA12: 0 | AB12: 0 | AC12: 0 | AD12: 0 | AE12: 0
B13: Pesispörssi | D13: =SUM(F12:H12)+((I12-F12-G12)/3)+(E12/3)+(Z12*25)+(AA12*25)+(AB12*10)+(AC12*25)+(AD12*20)+(AE12*15) -> 270.7
B15: URA SUPERISSA | E15: OTT | F15: KUN | G15: LÖI | H15: TOI | I15: KL | K15: ka/L | L15: ka/T | M15: ka/KL | N15: K - % | P15: ENSIMMÄISET
B16: Runkosarja | E16: =PRODUCT(E12) -> 111 | F16: =PRODUCT(F12) -> 7 | G16: =PRODUCT(G12) -> 28 | H16: =PRODUCT(H12) -> 92 | I16: =PRODUCT(I12) -> 355 | K16: =PRODUCT((F16+G16)/E16) -> 0.32 | L16: =PRODUCT(H16/E16) -> 0.83 | M16: =PRODUCT(I16/E16) -> 3.20 | N16: =PRODUCT(N12) -> 47.9 % | O16: =PRODUCT(O12) -> 741.2583788 | P16: Ottelu | S16: 13.05. 2009 ViU - SiiPe 1-0 (4-2, 3-3) | AD16: 1. ottelu | AF16: 19 v 3 kk 24 pv
B17: Ylempi loppusarja | E17: =SUM(P12) -> 10 | F17: =SUM(Q12) -> 0 | G17: =SUM(R12) -> 1 | H17: =SUM(S12) -> 2 | I17: =SUM(T12) -> 28 | K17: =PRODUCT((F17+G17)/E17) -> 0.10 | L17: =PRODUCT(H17/E17) -> 0.20 | M17: =PRODUCT(I17/E17) -> 2.80 | N17: =PRODUCT(I17/O17) -> 45.2 % | O17: 62 | P17: Lyöty juoksu | S17: 13.05. 2009 ViU - SiiPe 1-0 (4-2, 3-3) | AD17: 1. ottelu | AF17: 19 v 3 kk 24 pv
B18: Alempi loppusarja | E18: =PRODUCT(U12) -> 5 | F18: =PRODUCT(V12) -> 0 | G18: =PRODUCT(W12) -> 1 | H18: =PRODUCT(X12) -> 2 | I18: =PRODUCT(Y12) -> 13 | K18: =PRODUCT((F18+G18)/E18) -> 0.20 | L18: =PRODUCT(H18/E18) -> 0.40 | M18: =PRODUCT(I18/E18) -> 2.60 | N18: 50.0 % | O18: =PRODUCT(I18/N18) -> 26 | P18: Tuotu juoksu | S18: 13.05. 2009 ViU - SiiPe 1-0 (4-2, 3-3) | AD18: 1. ottelu | AF18: 19 v 3 kk 24 pv
B19: KAIKKI | E19: =SUM(E16:E18) -> 126 | F19: =SUM(F16:F18) -> 7 | G19: =SUM(G16:G18) -> 30 | H19: =SUM(H16:H18) -> 96 | I19: =SUM(I16:I18) -> 396 | K19: =PRODUCT((F19+G19)/E19) -> 0.29 | L19: =PRODUCT(H19/E19) -> 0.76 | M19: =PRODUCT(I19/E19) -> 3.14 | N19: =PRODUCT(I19/O19) -> 47.8 % | O19: =SUM(O16:O18) -> 829.2583788 | P19: Kunnari | S19: 23.05. 2010 SiiPe - Virkiä 1-0 (2-2, 3-2) | AD19: 33. ottelu | AF19: 20 v 4 kk 4 pv
B21: Seurat | D21: KPK = Kajaanin Pallokerho (1933), kasvattajaseura
D22: SiiPe = Siilinjärven Pesis (1987)
D23: YPJ = Ylihärmän Pesis-Junkkarit (1996)
D24: Pesä Ysit = Pesä Ysit, Lappeenranta (1976)

Sheet Arvo-ottelut
B1: ITÄ - LÄNSI - KORTTI
B2: Titta Liuski | C2: 19.1.1990 Kajaani
B3: B-TYTÖT | C3: Itä - Länsi, tulos | D3: Joukkue | E3: Seura | G3: V | H3: T | I3: H | J3: Up. | K3: Lj. | L3: Palk. | M3: O | N3: K | O3: L | P3: T | Q3: KL | R3: 1 | S3: 2 | T3: 3 | U3: k | V3: KL-% | W3: Pelinjohtaja | X3: Yleisöä
B4: 29.06. 2008 Raahe | C4: 2-0 (4-3, 5-3) | D4: Itä | E4: KPK | G4: 1 | J4: s | K4: 4 | M4: 1 | O4: 1 | Q4: 3/4 | R4: 1/1 | T4: 1/1 | U4: 1/2 | V4: 75.0 % | W4: Pentti Määttä | X4: 1423
B5: 28.06. 2009 Kuopio | C5: 2-1 (1-4, 4-3, 1-0) | D5: Itä | E5: SiiPe | G5: 1 | J5: 1v | K5: 4 | L5: A | M5: 1 | O5: 1 | P5: 1 | Q5: 3/6 | R5: 1/1 | S5: 0/1 | T5: 1/2 | U5: 1/2 | V5: 50.0 % | W5: Niina Sippola | X5: 2071
B6: Yhteensä | G6: 2 | M6: 2 | O6: 2 | P6: 1 | Q6: 6/10 | R6: 2/2 | S6: 0/1 | T6: 2/3 | U6: 2/4 | V6: 60.0 %
